bitfinex/quotes_ETHUSD_20250213
["timestamp","ask_amount","ask_price","bid_price","bid_amount"]
[1739416686814,112.21488583,2738.3,2738.2,73.818]
[1739416686977,108.60027558,2738.3,2738.2,73.818]
[1739416687794,114.15027558,2738.3,2738.2,73.818]
[1739416688854,119.70027558,2738.3,2738.2,73.818]
[1739416689406,119.70027558,2738.3,2738.2,77.47003]
[1739416689751,119.70027558,2738.3,2738.2,77.9799671]
[1739416690193,125.25027558,2738.3,2738.2,77.9799671]
[1739416692324,130.80027558,2738.3,2738.2,77.9799671]
[1739416693191,130.80027558,2738.3,2738.2,74.3279371]
[1739416693395,136.35027558,2738.3,2738.2,74.3279371]
[1739416693592,136.35027558,2738.3,2738.2,73.818]
[1739416693798,139.96488583,2738.3,2738.2,73.818]
[1739416694205,139.96488583,2738.3,2738.2,70.541]
[1739416694535,143.39388028,2738.3,2738.2,35.541]
[1739416694734,148.94388028,2738.3,2738.2,35.803]
[1739416695796,148.94388028,2738.3,2738.2,31.803]
[1739416696104,158.14578028,2738.3,2738.2,6.04]
[1739416696309,154.49388028,2738.3,2738.2,5.778]
[1739416696520,154.49388028,2738.3,2738.2,9.04]
[1739416697210,160.04388028,2738.3,2738.2,9.04]
[1739416697611,156.61488583,2738.3,2738.2,21.811]
[1739416698024,156.61488583,2738.3,2738.2,34.811]
[1739416698447,162.16488583,2738.3,2738.2,34.811]
[1739416699615,167.71488583,2738.3,2738.2,34.811]
[1739416700853,167.71488583,2738.3,2738.2,38.811]
[1739416701152,173.26488583,2738.3,2738.2,38.811]
[1739416701354,173.26488583,2738.3,2738.2,73.811]
[1739416702219,178.81488583,2738.3,2738.2,73.811]
[1739416703157,178.81488583,2738.3,2738.2,68.033]
[1739416703771,184.36488583,2738.3,2738.2,68.033]
[1739416704079,184.36488583,2738.3,2738.2,33.033]
[1739416704958,189.91488583,2738.3,2738.2,33.033]
[1739416705147,189.91488583,2738.3,2738.2,20.033]
[1739416706134,195.46488583,2738.3,2738.2,33.033]
[1739416707058,195.46488583,2738.3,2738.2,20.033]
[1739416707427,201.01488583,2738.3,2738.2,20.033]
[1739416708971,206.56488583,2738.3,2738.2,20.033]
[1739416709178,206.56488583,2738.3,2738.2,7.262]
[1739416709179,210.21678583,2738.3,2738.2,7.262]
[1739416709476,206.56488583,2738.3,2738.2,3.262]
[1739416710370,212.11488583,2738.3,2738.2,3.262]
[1739416710948,217.40488583,2738.3,2738.2,3.262]
[1739416711284,217.40488583,2738.3,2738.2,16.033]
[1739416711481,222.95488583,2738.3,2738.2,16.033]
[1739416711944,230.14878028,2738.3,2738.1,13.0]
[1739416712145,3.65251,2737.9,2737.7,13.0]
[1739416712368,5.19071,2737.9,2737.8,4.263]
[1739416712577,10.74071,2737.9,2737.8,4.0]
[1739416712811,12.54291045,2737.9,2737.8,4.263]
[1739416713374,12.54291045,2737.9,2737.8,3.263]
[1739416713683,8.89040045,2737.9,2737.8,3.263]
[1739416713840,14.44040045,2737.9,2737.8,3.263]
[1739416714044,14.44040045,2737.9,2737.8,16.036]
[1739416715195,19.99040045,2737.9,2737.8,16.036]
[1739416715652,19.99040045,2737.9,2737.8,15.773]
[1739416715848,19.99040045,2737.9,2737.8,16.036]
[1739416716364,25.54040045,2737.9,2737.8,16.036]
[1739416717558,31.09040045,2737.9,2737.8,16.036]
[1739416717762,34.74283045,2737.9,2737.8,16.036]
[1739416718787,40.29283045,2737.9,2737.8,16.036]
[1739416720407,45.84283045,2737.9,2737.8,16.036]
[1739416721579,51.39283045,2737.9,2737.8,16.036]
[1739416721780,47.74040045,2737.9,2737.8,16.036]
[1739416722981,53.29040045,2737.9,2737.8,16.036]
[1739416723365,51.4882,2737.9,2737.8,16.036]
[1739416723567,49.95,2737.9,2737.8,16.036]
[1739416724006,49.95,2737.9,2737.8,29.036]
[1739416724203,55.5,2737.9,2737.8,29.036]
[1739416724408,55.5,2737.9,2737.8,33.036]
[1739416725208,55.5,2737.9,2737.8,34.6332]
[1739416725372,61.05,2737.9,2737.8,34.6332]
[1739416725972,61.05,2737.9,2737.8,69.6332]
[1739416726685,66.6,2737.9,2737.8,69.6332]
[1739416727994,72.15,2737.9,2737.8,69.6332]
[1739416728970,72.15,2737.9,2737.8,73.28576]
[1739416729170,77.7,2737.9,2737.8,73.28576]
[1739416729372,77.7,2737.9,2737.8,73.8106971]
[1739416729611,77.7,2737.9,2737.8,74.65649343]
[1739416730500,83.25,2737.9,2737.8,74.65649343]
[1739416731725,88.8,2737.9,2737.8,89.58719343]
[1739416731902,88.8,2737.9,2737.8,90.13719343]
[1739416732790,94.35,2737.9,2737.8,90.13719343]
[1739416733404,94.35,2737.9,2737.8,90.32755034]
[1739416734122,99.9,2737.9,2737.8,90.32755034]
[1739416735517,105.45,2737.9,2737.8,90.32755034]
[1739416735826,105.45,2737.9,2737.8,103.72675034]
[1739416736693,109.47979536,2737.9,2737.8,109.50575034]
[1739416737724,109.47979536,2737.9,2737.8,114.81575034]
[1739416738029,115.02979536,2737.9,2737.8,114.81575034]
[1739416739083,120.57979536,2737.9,2737.8,114.81575034]
[1739416740427,126.12979536,2737.9,2737.8,114.81575034]
[1739416740636,125.3883067,2737.9,2737.8,114.81575034]
[1739416741918,130.9383067,2737.9,2737.8,114.81575034]
[1739416743438,131.0096467,2737.9,2737.8,118.24474479]
[1739416743621,127.3572067,2737.9,2737.8,118.24474479]
[1739416744195,109.26058664,2737.9,2737.8,118.24474479]
[1739416744403,109.26058664,2737.9,2737.8,118.34474479]
[1739416744597,110.85676048,2737.9,2737.8,118.34474479]
[1739416745295,105.37810048,2737.9,2737.8,118.34474479]
[1739416745839,110.92810048,2737.9,2737.8,118.34474479]
[1739416746196,103.62322048,2737.9,2737.8,118.08174479]
[1739416746398,103.62322048,2737.9,2737.8,118.34374479]
[1739416747117,109.17322048,2737.9,2737.8,118.34374479]
[1739416747561,91.07660042,2737.9,2737.8,118.34374479]
[1739416747734,91.06160042,2737.9,2737.8,118.34374479]
[1739416748263,91.13294042,2737.9,2737.8,118.34374479]
[1739416749463,85.65428042,2737.9,2737.8,118.34374479]
[1739416749633,91.20428042,2737.9,2737.8,118.34374479]
[1739416749962,91.20428042,2737.9,2737.8,114.55275034]
[1739416750113,91.20428042,2737.9,2737.8,110.81364152]
[1739416750559,89.54995334,2737.9,2737.8,110.81364152]
[1739416751060,95.09995334,2737.9,2737.8,114.36364152]
[1739416751360,93.27373334,2737.9,2737.8,113.81364152]
[1739416752326,98.82373334,2737.9,2737.8,114.36364152]
[1739416753075,97.18230358,2737.9,2737.8,114.36364152]
[1739416753859,93.22318769,2737.9,2737.8,114.36364152]
[1739416754060,93.22318769,2737.9,2737.8,118.24374479]
[1739416754267,72.61874487,2737.9,2737.8,118.24374479]
[1739416755124,78.16874487,2737.9,2737.8,118.24374479]
[1739416755429,73.51630487,2737.9,2737.8,122.08274479]
[1739416755869,71.69008487,2737.9,2737.8,122.08274479]
[1739416756249,71.53225487,2737.9,2737.8,122.08274479]
[1739416756457,67.87981487,2737.9,2737.8,114.81475034]
[1739416756637,67.87981487,2737.9,2737.8,100.50795034]
[1739416756847,67.87981487,2737.9,2737.8,100.05684152]
[1739416757228,60.57493487,2737.9,2737.8,103.93694479]
[1739416757430,58.74871487,2737.9,2737.8,103.93694479]
[1739416757744,64.29871487,2737.9,2737.8,103.93694479]
[1739416757929,64.29871487,2737.9,2737.8,100.50795034]
[1739416758665,64.29871487,2737.9,2737.8,108.35805034]
[1739416758868,69.84871487,2737.9,2737.8,107.35694152]
[1739416759651,69.84871487,2737.9,2737.8,114.36164152]
[1739416760389,75.39871487,2737.9,2737.8,114.36164152]
[1739416760562,75.39871487,2737.9,2737.8,103.64244152]
[1739416760880,74.89247716,2737.9,2737.8,103.39450442]
[1739416761474,74.89247716,2737.9,2737.8,106.39450442]
[1739416761689,80.44247716,2737.9,2737.8,106.39450442]
[1739416763097,85.99247716,2737.9,2737.8,106.39450442]
[1739416764192,84.44687716,2737.9,2737.8,107.45444152]
[1739416764499,89.99687716,2737.9,2737.8,107.90555034]
[1739416765606,95.54687716,2737.9,2737.8,107.90555034]
[1739416766773,101.09687716,2737.9,2737.8,107.90555034]
[1739416767093,101.09687716,2737.9,2737.8,107.45444152]
[1739416768198,106.64687716,2737.9,2737.8,107.45444152]
[1739416769222,106.64687716,2737.9,2737.8,107.19244152]
[1739416769390,112.19687716,2737.9,2737.8,106.94450442]
[1739416769577,112.19687716,2737.9,2737.8,78.61660442]
[1739416770371,112.19687716,2737.9,2737.8,83.92660442]
[1739416770571,112.19687716,2737.9,2737.8,99.18960442]
[1739416770799,117.74687716,2737.9,2737.8,99.18960442]
[1739416771313,117.74687716,2737.9,2737.8,98.63960442]
[1739416772283,123.29687716,2737.9,2737.8,98.63960442]
[1739416773215,123.29687716,2737.9,2737.8,99.69954152]
[1739416773590,128.84687716,2737.9,2737.8,112.76734152]
[1739416775013,134.39687716,2737.9,2737.8,112.76734152]
[1739416776919,139.94687716,2737.9,2737.8,112.76734152]
[1739416778112,145.49687716,2737.9,2737.8,112.76734152]
[1739416779517,151.04687716,2737.9,2737.8,112.76734152]
[1739416780884,156.59687716,2737.9,2737.8,112.76734152]
[1739416782229,162.14687716,2737.9,2737.8,112.76734152]
[1739416783733,167.69687716,2737.9,2737.8,112.76734152]
[1739416785046,173.24687716,2737.9,2737.8,112.76734152]
[1739416785633,173.24687716,2737.9,2737.8,112.50534152]
[1739416785833,174.74947716,2737.9,2737.8,112.50534152]
[1739416786034,174.74947716,2737.9,2737.8,99.99278152]
[1739416786236,183.62266843,2737.9,2737.8,99.1448]
[1739416786720,183.62266843,2737.9,2737.8,73.814]
[1739416787547,189.17266843,2737.9,2737.8,70.814]
[1739416788137,189.17266843,2737.9,2737.8,73.814]
[1739416788343,189.17266843,2737.9,2737.8,70.814]
[1739416788540,189.17266843,2737.9,2737.8,73.814]
[1739416788747,194.72266843,2737.9,2737.8,73.814]
[1739416789609,194.72266843,2737.9,2737.8,73.552]
[1739416789803,194.72266843,2737.9,2737.8,73.814]
[1739416790009,200.27266843,2737.9,2737.8,73.814]
[1739416791311,205.82266843,2737.9,2737.8,73.814]
[1739416792620,211.37266843,2737.9,2737.8,73.814]
[1739416794353,216.92266843,2737.9,2737.8,73.814]
[1739416795716,222.47266843,2737.9,2737.8,73.814]
[1739416796531,219.14947716,2737.9,2737.8,77.46656]
[1739416796938,223.19687716,2737.9,2737.8,77.9914971]
[1739416797556,223.19687716,2737.9,2737.8,91.6131971]
[1739416798062,223.19687716,2737.9,2737.8,92.55788461]
[1739416798262,228.74687716,2737.9,2737.8,92.55788461]
[1739416799566,234.29687716,2737.9,2737.8,92.04794751]
[1739416800867,239.84687716,2737.9,2737.8,92.55788461]
[1739416801440,239.84687716,2737.9,2737.8,92.00788461]
[1739416801751,239.84687716,2737.9,2737.8,106.20834751]
[1739416802143,245.39687716,2737.9,2737.8,106.20834751]
[1739416802854,245.39687716,2737.9,2737.8,108.38844751]
[1739416803770,250.94687716,2737.9,2737.8,108.38844751]
[1739416803968,250.94687716,2737.9,2737.8,106.20834751]
[1739416804848,256.49687716,2737.9,2737.8,106.20834751]
[1739416805446,256.49687716,2737.9,2737.8,107.26828461]
[1739416806639,262.04687716,2737.9,2737.8,107.26828461]
[1739416807955,267.59687716,2737.9,2737.8,107.26828461]
[1739416809141,273.14687716,2737.9,2737.8,107.26828461]
[1739416809787,269.49443716,2737.9,2737.8,107.26828461]
[1739416810081,251.3978171,2737.9,2737.8,112.77268788]
[1739416810283,249.5715971,2737.9,2737.8,112.96281878]
[1739416810578,251.4691571,2737.9,2737.8,112.96281878]
[1739416811342,245.9904971,2737.9,2737.8,112.96281878]
[1739416811756,251.5404971,2737.9,2737.8,112.96281878]
[1739416812142,249.7142771,2737.9,2737.8,109.08271551]
[1739416812344,242.4093971,2737.9,2737.8,112.51170996]
[1739416812651,242.4093971,2737.9,2737.8,112.96281878]
[1739416813038,247.9593971,2737.9,2737.8,112.96281878]
[1739416813485,242.78698505,2737.9,2737.8,112.96281878]
[1739416813648,237.30832505,2737.9,2737.8,112.51170996]
[1739416814183,235.48210505,2737.9,2737.8,112.51170996]
[1739416814398,233.72722505,2737.9,2737.8,112.51170996]
[1739416815694,231.97234505,2737.9,2737.8,112.51170996]
[1739416816292,230.14612505,2737.9,2737.8,112.51170996]
[1739416816461,226.49368505,2737.9,2737.8,112.51170996]
[1739416816664,212.04950499,2737.9,2737.8,112.96281878]
[1739416817163,215.77328499,2737.9,2737.8,112.96281878]
[1739416817506,211.57084499,2737.9,2737.8,112.96281878]
[1739416818501,211.64218499,2737.9,2737.8,112.96281878]
[1739416819098,211.62718499,2737.9,2737.8,118.27281878]
[1739416819277,195.35678493,2737.9,2737.8,118.27281878]
[1739416819458,199.08056493,2737.9,2737.8,112.96281878]
[1739416820400,195.42812493,2737.9,2737.8,112.96281878]
[1739416820600,193.60190493,2737.9,2737.8,112.96281878]
[1739416820802,199.15190493,2737.9,2737.8,112.96281878]
[1739416821162,195.49946493,2737.9,2737.8,112.96281878]
[1739416821503,193.67324493,2737.9,2737.8,112.96281878]
[1739416822073,199.22324493,2737.9,2737.8,112.96281878]
[1739416822272,193.74458493,2737.9,2737.8,112.96281878]
[1739416822505,181.12662487,2737.9,2737.8,112.96281878]
[1739416823208,183.15,2737.9,2737.8,112.96281878]
[1739416823387,181.19796487,2737.9,2737.8,112.96281878]
[1739416824310,179.37174487,2737.9,2737.8,112.96281878]
[1739416824517,181.26930487,2737.9,2737.8,112.96281878]
[1739416825414,175.77564487,2737.9,2737.8,112.96281878]
[1739416825870,181.32564487,2737.9,2737.8,112.96281878]
[1739416826371,175.84698487,2737.9,2737.8,112.96281878]
[1739416827179,181.39698487,2737.9,2737.8,112.96281878]
[1739416828138,179.57076487,2737.9,2737.8,112.96281878]
[1739416828340,177.81588487,2737.9,2737.8,112.96281878]
[1739416828497,177.62588487,2737.9,2737.8,112.96281878]
[1739416829216,175.79966487,2737.9,2737.8,112.96281878]
[1739416829878,177.69722487,2737.9,2737.8,112.96281878]
[1739416830392,175.87100487,2737.9,2737.8,112.96281878]
[1739416830594,174.04478487,2737.9,2737.8,112.96281878]
[1739416830794,172.21856487,2737.9,2737.8,112.96281878]
[1739416831195,175.94234487,2737.9,2737.8,112.96281878]
[1739416832319,172.28990487,2737.9,2737.8,112.96281878]
[1739416832507,168.7143008,2737.9,2737.8,112.96281878]
[1739416832685,174.2643008,2737.9,2737.8,112.96281878]
[1739416832880,133.04320574,2737.9,2737.8,116.80181878]
[1739416833117,116.33579074,2737.9,2737.8,116.80181878]
[1739416833503,112.68335074,2737.9,2737.8,116.80181878]
[1739416833890,110.85713074,2737.9,2737.8,116.80181878]
[1739416834315,107.20469074,2737.9,2737.8,116.80181878]
[1739416834643,105.37097074,2737.9,2737.8,116.80181878]
[1739416834795,43.86330191,2737.9,2737.8,117.16681878]
[1739416834984,32.4670512,2737.9,2737.8,117.16681878]
[1739416835185,23.96642715,2737.9,2737.8,117.16681878]
[1739416835408,1.11347715,2737.9,2737.8,117.16681878]
[1739416835724,212.42507558,2738.3,2738.2,12.94963]
[1739416836019,202.1600309,2738.3,2738.2,30.49335788]
[1739416836423,196.6821809,2738.3,2738.2,65.49335788]
[1739416836586,196.6821809,2738.3,2738.2,69.49335788]
[1739416837320,189.07645474,2738.3,2738.2,69.49335788]
[1739416837519,187.25050474,2738.3,2738.2,69.49335788]
[1739416838122,183.17333349,2738.3,2738.2,82.49335788]
[1739416838326,185.03530749,2738.3,2738.2,82.49335788]
[1739416838620,151.94835368,2738.3,2738.2,99.39615233]
[1739416838821,151.40189368,2738.3,2738.2,95.96715788]
[1739416839197,149.57594368,2738.3,2738.2,95.96715788]
[1739416839398,150.68955368,2738.3,2738.2,95.96715788]
[1739416839598,143.39399184,2738.3,2738.2,95.96715788]
[1739416839826,136.42035458,2738.3,2738.2,95.96715788]
[1739416840009,132.42035458,2738.3,2738.2,91.96715788]
[1739416840194,126.94250458,2738.3,2738.2,91.96715788]
[1739416840384,126.94250458,2738.3,2738.2,86.92704906]
[1739416840719,126.94250458,2738.3,2738.2,94.81231196]
[1739416840925,132.49250458,2738.3,2738.2,94.81231196]
[1739416841283,132.49250458,2738.3,2738.2,89.84171196]
[1739416841284,123.36275458,2738.3,2738.2,89.84171196]
[1739416841483,123.36275458,2738.3,2738.2,90.10371196]
[1739416842012,123.36275458,2738.3,2738.2,94.65371196]
[1739416842198,127.08680458,2738.3,2738.2,95.16364906]
[1739416842531,127.08680458,2738.3,2738.2,98.16364906]
[1739416842823,128.62640458,2738.3,2738.2,105.86391196]
[1739416843028,128.68973998,2738.3,2738.2,106.12591196]
[1739416843524,134.23973998,2738.3,2738.2,106.67591196]
[1739416843730,123.57038998,2738.3,2738.2,110.18584906]
[1739416844233,121.74443998,2738.3,2738.2,110.18584906]
[1739416844935,127.29443998,2738.3,2738.2,110.18584906]
[1739416846198,132.84443998,2738.3,2738.2,110.18584906]
[1739416847143,132.84443998,2738.3,2738.2,110.63695788]
[1739416847303,138.39443998,2738.3,2738.2,110.63695788]
[1739416848340,131.09063998,2738.3,2738.2,110.63695788]
[1739416848518,134.81468998,2738.3,2738.2,110.63695788]
[1739416848719,134.81468998,2738.3,2738.2,112.09595888]
[1739416849119,134.81468998,2738.3,2738.2,113.60185888]
[1739416849321,132.98873998,2738.3,2738.2,113.60185888]
[1739416849709,134.88683998,2738.3,2738.2,113.60185888]
[1739416850348,129.40898998,2738.3,2738.2,108.39185888]
[1739416851229,133.13303998,2738.3,2738.2,108.39185888]
[1739416851841,129.48113998,2738.3,2738.2,92.40835888]
[1739416852420,135.03113998,2738.3,2738.2,92.40835888]
[1739416852622,129.55328998,2738.3,2738.2,104.96086443]
[1739416852830,125.90138998,2738.3,2738.2,104.69886443]
[1739416853065,125.90138998,2738.3,2738.2,104.96086443]
[1739416853207,124.07543998,2738.3,2738.2,104.96086443]
[1739416853409,120.42353998,2738.3,2738.2,104.96086443]
[1739416853607,122.32163998,2738.3,2738.2,104.96086443]
[1739416854023,120.80204694,2738.3,2738.2,104.96086443]
[1739416854225,118.97609694,2738.3,2738.2,104.96086443]
[1739416854426,117.15014694,2738.3,2738.2,104.96086443]
[1739416854725,115.32419694,2738.3,2738.2,104.96086443]
[1739416854912,120.87419694,2738.3,2738.2,104.96086443]
[1739416855343,115.39634694,2738.3,2738.2,104.96086443]
[1739416855657,111.74444694,2738.3,2738.2,108.79886443]
[1739416856252,99.19863688,2738.3,2738.2,108.79886443]
[1739416857320,93.72078688,2738.3,2738.2,108.79886443]
[1739416857746,99.27078688,2738.3,2738.2,108.79886443]
[1739416858421,93.79293688,2738.3,2738.2,108.79886443]
[1739416858928,81.17497682,2738.3,2738.2,108.79886443]
[1739416859134,82.77115066,2738.3,2738.2,108.99886443]
[1739416859353,73.64555384,2738.3,2738.2,114.30886443]
[1739416860644,73.7687095,2738.3,2738.2,114.30886443]
[1739416861183,59.32479944,2738.3,2738.2,114.30886443]
[1739416861382,43.05500938,2738.3,2738.2,114.30886443]
[1739416861586,28.61116932,2738.3,2738.2,114.30886443]
[1739416861893,4.9252492,2738.3,2738.2,95.14476443]
[1739416862190,105.45,2738.7,2738.6,0.65]
[1739416862342,105.45,2738.7,2738.6,20.96412461]
[1739416862542,98.14728,2738.7,2738.6,22.59212461]
[1739416862879,98.14728,2738.7,2738.6,61.59212461]
[1739416863128,103.69728,2738.7,2738.6,61.59212461]
[1739416863679,103.69728,2738.7,2738.6,89.90332461]
[1739416863858,102.05670192,2738.7,2738.6,89.90332461]
[1739416864057,102.05670192,2738.7,2738.6,102.90332461]
[1739416864289,107.60670192,2738.7,2738.6,102.90332461]
[1739416864584,100.30398192,2738.7,2738.6,107.19243343]
[1739416864745,98.47830192,2738.7,2738.6,112.50243343]
[1739416865144,96.65262192,2738.7,2738.6,112.50243343]
[1739416865381,96.72558192,2738.7,2738.6,112.50243343]
[1739416866286,94.89990192,2738.7,2738.6,112.50243343]
[1739416866486,91.24854192,2738.7,2738.6,112.50243343]
[1739416866685,93.14718192,2738.7,2738.6,112.50243343]
[1739416866874,92.59718192,2738.7,2738.6,112.50243343]
[1739416867988,94.49582192,2738.7,2738.6,112.50243343]
[1739416868287,94.53740886,2738.7,2738.6,112.50243343]
[1739416868486,90.88604886,2738.7,2738.6,112.50243343]
[1739416868790,87.23468886,2738.7,2738.6,112.50243343]
[1739416868960,90.95900886,2738.7,2738.6,112.50243343]
[1739416869345,88.45279713,2738.7,2738.6,112.50243343]
[1739416869582,86.62711713,2738.7,2738.6,112.50243343]
[1739416869887,79.32439713,2738.7,2738.6,112.50243343]
[1739416870348,84.87439713,2738.7,2738.6,112.50243343]
[1739416870759,81.91249445,2738.7,2738.6,112.76443343]
[1739416871459,80.15977445,2738.7,2738.6,112.76443343]
[1739416871660,78.33409445,2738.7,2738.6,112.76443343]
[1739416872299,73.68273445,2738.7,2738.6,112.76443343]
[1739416873397,79.23273445,2738.7,2738.6,112.76443343]
[1739416873576,75.58137445,2738.7,2738.6,112.76443343]
[1739416874898,77.48001445,2738.7,2738.6,112.76443343]
[1739416875199,64.86205439,2738.7,2738.6,112.76443343]
[1739416875521,63.03637439,2738.7,2738.6,112.76443343]
[1739416876022,61.21069439,2738.7,2738.6,112.76443343]
[1739416876322,63.10933439,2738.7,2738.6,112.76443343]
[1739416876802,59.45797439,2738.7,2738.6,112.76443343]
[1739416876998,55.80661439,2738.7,2738.6,112.76443343]
[1739416877205,52.15525439,2738.7,2738.6,107.45443343]
[1739416877501,52.22821439,2738.7,2738.6,107.45443343]
[1739416877700,44.44014823,2738.7,2738.6,107.65443343]
[1739416877900,43.22919023,2738.7,2738.6,107.65443343]
[1739416878100,31.28705916,2738.7,2738.6,107.65443343]
[1739416878318,4.07187822,2738.7,2738.6,107.65443343]
[1739416878470,1.40029822,2738.7,2738.6,107.65443343]
[1739416878664,200.73466239,2739.1,2739.0,7.30096]
[1739416878867,200.73466239,2739.1,2739.0,30.27158461]
[1739416879069,200.77163588,2739.1,2739.0,30.27158461]
[1739416879281,200.77163588,2739.1,2739.0,65.27158461]
[1739416879538,184.036215,2739.1,2739.0,71.06389343]
[1739416879684,183.99924151,2739.1,2739.0,84.97899343]
[1739416879891,182.25588995,2739.1,2739.0,84.97899343]
[1739416880188,174.95847989,2739.1,2739.0,97.97899343]
[1739416880395,164.83502108,2739.1,2739.0,97.97899343]
[1739416880576,156.23419618,2739.1,2739.0,97.97899343]
[1739416880784,145.29428523,2739.1,2739.0,97.97899343]
[1739416881190,130.9329843,2739.1,2739.0,97.97899343]
[1739416881369,121.81015424,2739.1,2739.0,97.97899343]
[1739416881584,116.31853124,2739.1,2739.0,97.97899343]
[1739416881801,112.67196118,2739.1,2739.0,97.97899343]
[1739416882203,109.02112118,2739.1,2739.0,97.97899343]
[1739416882508,98.85506821,2739.1,2739.0,97.97899343]
[1739416882681,98.85506821,2739.1,2739.0,109.09459343]
[1739416882882,94.20847814,2739.1,2739.0,109.09459343]
[1739416883312,92.38305814,2739.1,2739.0,109.09459343]
[1739416883606,86.90679814,2739.1,2739.0,109.09459343]
[1739416883809,85.08137814,2739.1,2739.0,109.09459343]
[1739416883969,88.78695714,2739.1,2739.0,109.09459343]
[1739416884169,74.34357708,2739.1,2739.0,109.09459343]
[1739416884396,69.69273708,2739.1,2739.0,109.09459343]
[1739416884598,54.60632808,2739.1,2739.0,109.09459343]
[1739416885227,54.68006808,2739.1,2739.0,109.09459343]
[1739416885516,52.98478712,2739.1,2739.0,109.09459343]
[1739416885699,52.98478712,2739.1,2739.0,109.35659343]
[1739416885899,52.79478712,2739.1,2739.0,109.35659343]
[1739416886409,49.21768712,2739.1,2739.0,109.35659343]
[1739416886613,45.56684712,2739.1,2739.0,109.35659343]
[1739416887209,28.61766281,2739.1,2739.0,109.35659343]
[1739416887408,28.69140281,2739.1,2739.0,109.35659343]
[1739416887616,26.86598281,2739.1,2739.0,109.35659343]
[1739416888428,21.38972281,2739.1,2739.0,109.35659343]
[1739416888635,4.79392406,2739.1,2739.0,109.35659343]
[1739416888796,4.79392406,2739.1,2739.0,109.72159343]
[1739416889127,10.34392406,2739.1,2739.0,109.72159343]
[1739416889284,38.85,2739.7,2739.5,5.25988]
[1739416889285,34.74861296,2739.7,2739.5,5.25988]
[1739416889500,34.74861296,2739.7,2739.6,26.61889343]
[1739416889699,34.74861296,2739.7,2739.6,30.45689343]
[1739416889919,34.38371296,2739.7,2739.6,67.33149343]
[1739416890164,31.26957906,2739.7,2739.6,80.33149343]
[1739416890301,29.44455906,2739.7,2739.6,74.61889343]
[1739416890495,29.44455906,2739.7,2739.6,78.88089343]
[1739416890721,22.14447906,2739.7,2739.6,93.15739343]
[1739416891241,22.14447906,2739.7,2739.6,92.89539343]
[1739416891533,23.69447906,2739.7,2739.6,89.15739343]
[1739416891738,23.69447906,2739.7,2739.6,103.18029343]
[1739416892342,16.39439906,2739.7,2739.6,103.18029343]
[1739416892496,21.74147906,2739.7,2739.6,102.46718461]
[1739416892702,21.74147906,2739.7,2739.6,102.21924751]
[1739416893640,20.11937906,2739.7,2739.6,102.72918461]
[1739416893842,25.66937906,2739.7,2739.6,102.91829343]
[1739416894139,2.40767118,2739.7,2739.6,103.18029343]
[1739416894344,0.58265118,2739.7,2739.6,103.18029343]
[1739416895007,6.13265118,2739.7,2739.6,103.18029343]
[1739416896230,11.68265118,2739.7,2739.6,103.18029343]
[1739416897862,17.23265118,2739.7,2739.6,103.18029343]
[1739416898174,18.81805118,2739.7,2739.6,98.66924751]
[1739416898381,18.81805118,2739.7,2739.6,94.6244]
[1739416899076,18.81805118,2739.7,2739.6,102.3344971]
[1739416899225,24.36805118,2739.7,2739.6,103.18029343]
[1739416899731,12.65755118,2739.7,2739.6,107.11829343]
[1739416899925,9.01194153,2739.7,2739.6,108.67889343]
[1739416900238,49.95,2740.0,2739.9,3.64976]
[1739416900436,49.95,2740.0,2739.9,24.85538461]
[1739416900633,29.44285275,2740.0,2739.9,34.45449343]
[1739416900849,17.45151499,2740.0,2739.9,71.01509343]
[1739416901034,4.11852804,2740.0,2739.9,84.01509343]
[1739416901235,139.78426389,2740.2,2740.1,9.1481]
[1739416901563,134.10618186,2740.2,2740.1,22.81383343]
[1739416901926,134.10618186,2740.2,2740.1,58.36383343]
[1739416902127,134.10618186,2740.2,2740.1,66.05383343]
[1739416902361,124.29133926,2740.2,2740.1,62.05383343]
[1739416903244,129.84133926,2740.2,2740.1,62.05383343]
[1739416903443,109.9246592,2740.2,2740.1,62.05383343]
[1739416903643,109.9246592,2740.2,2740.1,90.34343343]
[1739416904230,106.2752992,2740.2,2740.1,90.34343343]
[1739416904439,108.1759392,2740.2,2740.1,90.34343343]
[1739416904678,107.9859392,2740.2,2740.1,90.34343343]
[1739416905143,106.1612592,2740.2,2740.1,90.34343343]
[1739416905345,98.8625392,2740.2,2740.1,86.50543343]
[1739416905762,101.90793465,2740.2,2740.1,86.50543343]
[1739416906135,100.08325465,2740.2,2740.1,86.50543343]
[1739416906336,83.81593459,2740.2,2740.1,86.50543343]
[1739416906550,81.99125459,2740.2,2740.1,86.50543343]
[1739416906762,80.16657459,2740.2,2740.1,86.50543343]
[1739416906960,85.71657459,2740.2,2740.1,86.50543343]
[1739416907274,83.89189459,2740.2,2740.1,86.76743343]
[1739416907477,83.89189459,2740.2,2740.1,86.41572461]
[1739416907777,83.89189459,2740.2,2740.1,81.10572461]
[1739416908071,85.52329459,2740.2,2740.1,80.59578751]
[1739416908284,91.07329459,2740.2,2740.1,81.14578751]
[1739416908513,91.07329459,2740.2,2740.1,84.65572461]
[1739416908720,91.07329459,2740.2,2740.1,84.10572461]
[1739416909052,91.07329459,2740.2,2740.1,84.55683343]
[1739416909254,89.44189459,2740.2,2740.1,85.10683343]
[1739416909449,94.99189459,2740.2,2740.1,85.10683343]
[1739416910774,100.54189459,2740.2,2740.1,84.65572461]
[1739416910974,100.54189459,2740.2,2740.1,85.10683343]
[1739416912095,102.44253459,2740.2,2740.1,85.10683343]
[1739416912647,100.61785459,2740.2,2740.1,85.20683343]
[1739416912852,100.61785459,2740.2,2740.1,90.51683343]
[1739416913291,106.16785459,2740.2,2740.1,90.51683343]
[1739416913502,97.04445459,2740.2,2740.1,90.51683343]
[1739416913713,84.42649453,2740.2,2740.1,90.51683343]
[1739416914216,82.60181453,2740.2,2740.1,90.51683343]
[1739416914515,79.85309453,2740.2,2740.1,85.20683343]
[1739416914862,75.89926837,2740.2,2740.1,89.04483343]
[1739416915062,75.89926837,2740.2,2740.1,90.66173343]
[1739416915357,74.07458837,2740.2,2740.1,90.66173343]
[1739416915861,69.71122045,2740.2,2740.1,91.02673343]
[1739416915995,125.69813833,2740.8,2740.7,0.1]
[1739416916203,118.68704489,2740.8,2740.7,35.55240882]
[1739416916496,102.75923596,2740.8,2740.7,36.45703343]
[1739416916803,102.75923596,2740.8,2740.7,71.45703343]
[1739416917174,90.75502506,2740.8,2740.7,67.45703343]
[1739416917372,62.57493701,2740.8,2740.7,62.14703343]
[1739416917697,57.71910228,2740.8,2740.7,62.14703343]
[1739416917899,53.36527612,2740.8,2740.7,62.14703343]
[1739416918257,53.44243612,2740.8,2740.7,62.14703343]
[1739416918468,25.77600012,2740.8,2740.7,62.14703343]
[1739416918672,16.65,2741.7,2741.6,13.03]